Cogmind - Beta 13 @@@ ROGUE MODE // 2024.03.07 @ 17:48:25 Player: monistgf Result: Self-destructed Performance ------------- Evolutions (8) 4000 Regions Visited (11) 2200 Robots Destroyed (75) 375 Value Destroyed (3113) 3113 Prototype IDs (11) 220 Alien Tech Used (0) 0 Bonus (328) 328 TOTAL SCORE: 10236 Bonus ------- Pacifist 200 High Alert Combat Kills 128 Cogmind --------- Core Integrity 858/1450 Matter 284/300 Energy 190/190 System Corruption 26% Temperature Cool (0) Movement Rolling (125) Ox3 Location -2/Research Parts ------- > --- POWER (2) -------- Light Quantum Reactor > --- PROPULSION (7) --- Wheel Improved Antigrav System > --- UTILITY (10) ----- Medium Storage Unit Advanced Visual Processing Unit Melee Analysis Suite Melee Analysis Suite Improved Melee Analysis Suite Advanced Target Analyzer > --- WEAPON (4) ------- Linear Accelerator > --- INVENTORY (10) --- Light Antimatter Reactor Reinforced Antimatter Reactor Particle Reactor Long-range Missile Launcher Peak State ------------ > --- POWER ------------ Reinforced Antimatter Reactor Quantum Reactor > --- PROPULSION ------- Advanced Medium Treads Advanced Medium Treads Advanced Medium Treads Advanced Medium Treads Centrium Wheel Centrium Wheel Centrium Wheel > --- UTILITY ---------- Advanced Heat Sink Advanced Visual Processing Unit Melee Analysis Suite Melee Analysis Suite Melee Analysis Suite Improved Melee Analysis Suite Improved Melee Analysis Suite Actuator Array Advanced Transmission Jammer Hacking Suite > --- WEAPON ----------- Chainsword Chainsword Chainsword Great Axe > --- INVENTORY -------- Particle Reactor Advanced Medium Treads Heavy Gauss Cannon Long-range Missile Launcher Chainsword [Rating: 122] Favorites ----------- Power Reinforced Antimatter Reactor Engine Makeshift Power Source Power Core Micro Nuclear Core Reactor Reinforced Antimatter Reactor Propulsion Advanced Medium Treads Treads Advanced Medium Treads Leg Advanced VSS Leg Wheel Centrium Wheel Hover Unit Improved Antigrav System Flight Unit Improved Flight Unit Utility Improved Melee Analysis Suite Device Advanced Transmission Jammer Storage Medium Storage Unit Processor Improved Melee Analysis Suite Hackware Hacking Suite Protection Heavy Armor Plating Weapon Chainsword Energy Gun Small Laser Ballistic Gun Minigun Ballistic Cannon Linear Accelerator Launcher Heavy Rocket Launcher Impact Weapon Power Maul Slashing Weapon Chainsword Piercing Weapon Spear Build | -11 -10 -9 -8 -7 -6 -5 -5 -5 -4 -3 -2 ------- Run | Yrd Mat Mat Mat Fac Fac Fac Upp Upp Fac Res Res Slots Evolved 16 | . . 2 2 2 2 2 . . 2 2 2 Power 1 | . . . . . . . . . 1 . . Propulsion 5 | . . . 2 2 1 . . . . . . Utility 8 | . . . . . 1 2 . . 1 2 2 Weapon 2 | . . 2 . . . . . . . . . Parts Attached 165 | . 5 12 6 32 6 26 11 . 20 19 28 Power 14 | . . . 2 . . 2 1 . 4 2 3 Engine 3 | . . . 1 . . 1 1 . . . . Core 2 | . . . 1 . . 1 . . . . . Reactor 9 | . . . . . . . . . 4 2 3 Propulsion 68 | . 2 4 2 21 3 5 3 . 7 9 12 Treads 9 | . . . . . . . . . 1 6 2 Leg 18 | . 2 3 2 2 . 1 2 . 3 . 3 Wheel 4 | . . . . . . . . . . 3 1 Hover 21 | . . . . 5 3 4 . . 3 . 6 Flight 16 | . . 1 . 14 . . 1 . . . . Utility 38 | . 1 1 . 3 1 10 2 . 7 7 6 Device 15 | . . 1 . 2 . 4 1 . 4 1 2 Storage 4 | . 1 . . . . . . . 1 1 1 Processor 12 | . . . . . . 4 1 . 1 3 3 Hackware 2 | . . . . . 1 . . . 1 . . Protection 5 | . . . . 1 . 2 . . . 2 . Artifact . | . . . . . . . . . . . . Weapon 45 | . 2 7 2 8 2 9 5 . 2 1 7 Energy Gun 3 | . 1 1 . . . . . . . . 1 Energy Cannon . | . . . . . . . . . . . . Ballistic Gun 15 | . 1 6 1 6 . . . . 1 . . Ballistic Cannon 2 | . . . . . . 1 . . . . 1 Launcher 4 | . . . 1 . . 1 . . . . 2 Special Weapon . | . . . . . . . . . . . . Impact Weapon 2 | . . . . . 1 1 . . . . . Slashing Weapon 18 | . . . . 2 1 6 4 . 1 1 3 Piercing Weapon 1 | . . . . . . . 1 . . . . Special Melee Weapon . | . . . . . . . . . . . . Unidentified Prototypes 7 | . . 2 1 1 . 1 . . 1 1 . Corrupted Parts 2 | . . . . . . . . . . . 2 System Corruption 5 | . . . . . . . . . . . 5 Parts Lost 56 | . . . . 7 1 13 1 2 2 1 29 Power 2 | . . . . . . . . . . . 2 Propulsion 29 | . . . . 4 . 7 . 2 1 . 15 Utility 12 | . . . . 1 . 2 1 . 1 1 6 Weapon 13 | . . . . 2 1 4 . . . . 6 Highest Loss Streak 12 | . . . . 7 1 6 1 2 1 1 12 To Critical Strikes . | . . . . . . . . . . . . Average Slot Usage (%) 82 | . 80 99 87 95 81 68 31 61 82 93 86 Engine 2 | . 14 11 6 . . . . 5 4 . . Core 1 | . . . 3 7 6 3 . . . . . Reactor 3 | . . . . . . . . . 1 9 7 Treads 4 | . . . . . . . . . 4 15 10 Leg 7 | . 26 21 24 . . . 1 8 14 3 2 Wheel 3 | . . . . . . . . . . 11 9 Hover 5 | . . . . 7 4 15 . . 7 1 3 Flight 4 | . . . . 33 32 2 4 5 . . . Device 9 | . . 10 9 5 6 4 9 5 14 12 10 Storage 3 | . 14 11 9 7 6 4 . . . . 2 Processor 8 | . . . . . . 5 7 11 10 10 21 Hackware 2 | . . . . . . 4 . . 4 4 1 Protection 1 | . . . . . . 3 . . . 3 . Ballistic Gun 8 | . 12 42 36 24 9 . . . 2 . . Slashing Weapon 10 | . . . . 4 10 12 . 23 16 19 14 Naked Turns 20 | . . . . . . 20 . . . . . Heaviest Build 78 | 10 20 26 29 32 28 35 17 17 55 76 78 Greatest Support 120 | 20 20 34 54 41 60 71 31 31 77 77 120 Greatest Overweight (x) 4 | . 1 1 . 3 1 3 1 1 . 4 4 Average Overweight (x) . | . . . . . . . . . . . 1 Largest Inventory Capacity 10 | . 10 10 10 10 10 10 5 5 5 5 10 Average Capacity 7 | . 9 10 10 10 10 9 5 5 5 5 7 Most Carried 10 | . 7 10 10 10 10 10 5 5 5 5 6 Average Carried 6 | . 6 9 9 9 9 9 4 5 4 4 4 Final Capacity 10 | 8 10 10 10 10 10 5 5 5 5 5 10 Final Carried 10 | 6 7 9 10 10 10 5 5 5 5 4 4 Class Distribution -------------------- 48% | Gladiator 16% | Mutant 16% | Skirmisher 6% | Sprinter 5% | Scavenger-Gladiator 4% | Scavenger-Mutant Dominant Class ---------------- Mutant | -10/Materials Skirmisher | -9/Materials Skirmisher | -8/Materials Sprinter | -7/Factory Sprinter | -6/Factory Mutant | -5/Factory Mutant | -5/Upper Caves Gladiator | -5/Upper Caves Gladiator | -4/Factory Gladiator | -3/Research Gladiator | -2/Research Resources | -11 -10 -9 -8 -7 -6 -5 -5 -5 -4 -3 -2 ----------- Run | Yrd Mat Mat Mat Fac Fac Fac Upp Upp Fac Res Res Matter Collected 2530 | 195 . 487 145 195 220 277 177 . 251 190 393 Remotely . | . . . . . . . . . . . . Salvage Created 4100 | . . 606 167 194 216 484 292 . 308 597 1236 Parts 199 | . . 36 8 17 8 22 2 . 11 23 72 Haulers Intercepted 3 | . . 2 1 . . . . . . . . Recyclers Shooed 4 | . . 1 . 1 . . . . . . 2 Parts Field Recycled . | . . . . . . . . . . . . Retrieved Matter . | . . . . . . . . . . . . Parts Self-Destructed . | . . . . . . . . . . . . Prevented . | . . . . . . . . . . . . Kills | -11 -10 -9 -8 -7 -6 -5 -5 -5 -4 -3 -2 ------- Run | Yrd Mat Mat Mat Fac Fac Fac Upp Upp Fac Res Res Combat Hostiles Destroyed 51 | . . 12 2 5 . 9 . . 4 3 16 Melee 26 | . . . . 1 . 7 . . 4 3 11 Guns 19 | . . 12 2 4 . . . . . . 1 Cannons 1 | . . . . . . . . . . . 1 AOE 5 | . . . . . . 2 . . . . 3 Classes Destroyed 11 | . . 4 1 1 1 3 . . 1 . . Worker 8 | . . . 1 2 3 . . . . 1 1 Tunneler 1 | . . . . . . 1 . . . . . Hauler 3 | . . 2 1 . . . . . . . . Recycler 5 | . . . . . 1 . . . . 2 2 Operator 4 | . . . . . . . . . 2 1 1 Watcher 3 | . . . . . . 1 . . . . 2 Swarmer 10 | . . . . 4 . 2 . . . . 4 Grunt 18 | . . 9 1 . . 3 . . 1 . 4 Duelist 3 | . . 2 . . . . . . . . 1 Sentry 6 | . . 1 1 1 . . . . 1 2 . Programmer 14 | . . . . . . 4 . . 2 1 7 Best Kill Streak 6 | . . 5 3 5 2 4 . . 3 1 6 Combat Bots Only 5 | . . 5 1 5 . 4 . . 2 1 4 Max Kills in Single Turn 2 | . . 2 1 2 1 1 . . 1 1 2 Gunslinging 1 | . . . . 1 . . . . . . . Exploded 2 | . . . . . . 1 . . . . 2 Melee 1 | . . . . 1 . 1 . . 1 1 1 Uniques/NPCs Destroyed . | . . . . . . . . . . . . Combat | -11 -10 -9 -8 -7 -6 -5 -5 -5 -4 -3 -2 -------- Run | Yrd Mat Mat Mat Fac Fac Fac Upp Upp Fac Res Res Hostile Shots Fired 691 | . . 22 10 118 7 192 9 18 29 56 230 Missed 217 | . . 4 7 37 3 69 3 7 12 15 60 Damage Taken 9369 | . . 213 46 842 71 2453 136 206 508 886 4008 Core 1755 | . . 38 . 79 19 706 96 54 71 100 592 Absorbed by Shields . | . . . . . . . . . . . . Redirected to Shielding 39 | . . . . . . 39 . . . . . Core Remaining (%) 86 | 100 100 90 100 88 97 . . 14 93 92 . Volleys Fired 63 | . . 22 10 8 . 5 . . 1 . 17 Largest 4 | . . 4 4 4 . 1 . . 1 . 2 Hottest 141 | . . 100 100 106 . 57 . . 35 . 141 Shots Fired 186 | . . 88 40 24 . 5 . . 1 . 28 Gun 165 | . . 88 40 24 . . . . 1 . 12 Cannon 12 | . . . . . . 1 . . . . 11 Launcher 9 | . . . . . . 4 . . . . 5 Special . | . . . . . . . . . . . . Kinetic 165 | . . 88 40 24 . 1 . . 1 . 11 Thermal . | . . . . . . . . . . . . Explosive 9 | . . . . . . 4 . . . . 5 Electromagnetic 12 | . . . . . . . . . . . 12 Robot Hit Streak 11 | . . 8 11 10 . 1 . . . . 6 Robot Miss Streak 4 | . . 2 4 4 . 1 . . . . 2 Penetration Max 1 | . . . . 1 . . . . . . . Secondary Targets 5 | . . 3 . 2 . . . . . . . Max Gunslinging Chain 1 | . . 1 . 1 . . . . . . . Shots Hit Robots 294 | . . 53 20 17 7 36 6 . 14 34 107 Core Hits 109 | . . 21 6 9 2 11 3 . 8 10 39 Critical Kills . | . . . . . . . . . . . . Critical Parts Destroyed 2 | . . . . . 1 1 . . . . . Critical Strikes 37 | . . . . . 1 9 1 . 4 4 18 Blast 2 | . . . . . . . . . . . 2 Corrupt 2 | . . . . . . . . . . . 2 Smash 2 | . . . . . 1 1 . . . . . Sever 30 | . . . . . . 8 . . 4 4 14 Impale 1 | . . . . . . . 1 . . . . Melee Attacks 258 | . . . . 7 10 58 14 . 31 37 101 Impact 5 | . . . . . 4 1 . . . . . Slashing 239 | . . . . 7 6 57 . . 31 37 101 Piercing 14 | . . . . . . . 14 . . . . Sneak Attacks 15 | . . . . . 5 1 . . 2 4 3 Combat Hostiles . | . . . . . . . . . . . . Follow-up Attacks 60 | . . . . . 1 7 . . 4 12 36 Damage Inflicted 11803 | . . 977 335 420 537 1942 370 . 668 1503 5051 Guns 1856 | . . 972 335 316 . . . . . . 233 Cannons 359 | . . . . . . . . . . . 359 Explosions 912 | . . . . . . 320 . . . . 592 Melee 8671 | . . . . 104 537 1622 370 . 668 1503 3867 Ramming 5 | . . 5 . . . . . . . . . Kinetic 1982 | . . 972 335 316 . . . . . . 359 Thermal 99 | . . . . . . 99 . . . . . Explosive 813 | . . . . . . 221 . . . . 592 Electromagnetic 233 | . . . . . . . . . . . 233 Impact 257 | . . . . . 195 62 . . . . . Slashing 8044 | . . . . 104 342 1560 . . 668 1503 3867 Piercing 370 | . . . . . . . 370 . . . . Highest Corruption 26 | . . . . . . 6 6 6 1 6 26 Average Corruption 4 | . . . . . . 3 6 6 1 5 10 Corruption Purged . | . . . . . . . . . . . . Corruption Blocked . | . . . . . . . . . . . . Effects 43 | . . . . . . 7 9 1 3 3 20 Message Errors 7 | . . . . . . . 2 1 . 2 2 Matter Fused 10 | . . . . . . 1 2 . 3 . 4 Heat Flow Errors 9 | . . . . . . 3 4 . . 1 1 Energy Discharges 5 | . . . . . . . 1 . . . 4 Parts Rejected 2 | . . . . . . . . . . . 2 Data Loss (minor) 4 | . . . . . . 3 . . . . 1 Data Loss (major) 1 | . . . . . . . . . . . 1 Misfires 1 | . . . . . . . . . . . 1 Alerts 1 | . . . . . . . . . . . 1 Misdirections 3 | . . . . . . . . . . . 3 Overload Shots . | . . . . . . . . . . . . Overflow Damage 1161 | . . . . 23 236 343 77 . 113 98 271 Projectiles 2 | . . . . . . . . . . . 2 Explosions 74 | . . . . . . 21 . . . . 53 Melee 1085 | . . . . 23 236 322 77 . 113 98 216 Knockbacks 7 | . . . . . . . . . . . 7 Impact . | . . . . . . . . . . . . Kinetic 5 | . . . . . . . . . . . 5 Secondary 2 | . . . . . . . . . . . 2 Self-Inflicted Damage 63 | . . . . . . 63 . . . . . Shots 1 | . . . . . . 1 . . . . . Rammed . | . . . . . . . . . . . . Targets Rammed 2 | . . 2 . . . . . . . . . Kicked 2 | . . 2 . . . . . . . . . Crushed . | . . . . . . . . . . . . Highest Temperature 357 | . . 245 171 69 18 168 253 . 18 186 357 Average Temperature 68 | . . 89 82 21 9 60 94 . 12 96 191 Received Heat Transfer 1302 | . . 114 18 144 27 516 39 102 63 45 234 Effects 1 | . . . . . . . . . . . 1 Energy Bleed 1 | . . . . . . . . . . . 1 Siege Activations . | . . . . . . . . . . . . Robots Corrupted . | . . . . . . . . . . . . Combat Hostiles . | . . . . . . . . . . . . Parts Fried . | . . . . . . . . . . . . Impact Corruptions 5 | . . . . . 2 2 . . . . 1 Robots Melted . | . . . . . . . . . . . . Combat Hostiles . | . . . . . . . . . . . . Parts Melted 1 | . . . . . . 1 . . . . . Heat Transferred 50 | . . . . . . 50 . . . . . Parts Sabotaged 3 | . . . . . . 3 . . . . . Parts Stolen . | . . . . . . . . . . . . Parts Stripped . | . . . . . . . . . . . . Power Chain Reactions . | . . . . . . . . . . . . Alert | -11 -10 -9 -8 -7 -6 -5 -5 -5 -4 -3 -2 ------- Run | Yrd Mat Mat Mat Fac Fac Fac Upp Upp Fac Res Res Peak Influence 661 | . 15 204 159 354 206 661 . . 322 180 414 Initial 247 | . . 5 67 72 74 100 . . 247 48 19 Average 203 | . . 104 117 274 132 381 . . 191 89 240 Maximum Alert Level 2 | . . 1 . 1 1 2 . . 1 . 2 Low Security (%) 55 | . 100 75 100 17 72 19 . . 58 100 36 Level 1 36 | . . 24 . 82 27 29 . . 41 . 60 Level 2 8 | . . . . . . 51 . . . . 2 Level 3 . | . . . . . . . . . . . . Level 4 . | . . . . . . . . . . . . Level 5 . | . . . . . . . . . . . . High Security . | . . . . . . . . . . . . Max Security . | . . . . . . . . . . . . Squads Dispatched 18 | . . . . 4 1 6 . . 4 1 2 Investigation 3 | . . . . 1 1 . . . 1 . . Extermination 5 | . . . . . . 2 . . 1 1 1 Reinforcement 5 | . . . . . . 2 . . 2 . 1 Assault 2 | . . . . . . 2 . . . . . Garrison 3 | . . . . 3 . . . . . . . Intercept . | . . . . . . . . . . . . Searches Triggered 1 | . . . . . . 1 . . . . . Construction Impeded 1 | . . . . . . . . . . . 1 Haulers Reinforced . | . . . . . . . . . . . . Active Scanning Responses . | . . . . . . . . . . . . Cargo Convoy Interrupts . | . . . . . . . . . . . . Stealth | -11 -10 -9 -8 -7 -6 -5 -5 -5 -4 -3 -2 --------- Run | Yrd Mat Mat Mat Fac Fac Fac Upp Upp Fac Res Res Distress Signals 8 | . . 1 . 1 1 4 . . 1 . . Communications Jammed 41 | . . . . . . . . . . . 41 Distress Signals 41 | . . . . . . . . . . . 41 Times Spotted 166 | . 1 14 3 21 7 49 7 10 11 6 37 Peak Tracking Total 17 | . 1 4 1 12 4 17 9 10 3 3 7 Tactical Retreats 31 | . . 1 . 4 3 12 3 . 2 . 6 Traps | -11 -10 -9 -8 -7 -6 -5 -5 -5 -4 -3 -2 ------- Run | Yrd Mat Mat Mat Fac Fac Fac Upp Upp Fac Res Res Traps Triggered 7 | . 2 . . 1 . 1 . . 1 2 . Indirectly . | . . . . . . . . . . . . Trap Hack Attempts . | . . . . . . . . . . . . Triggered . | . . . . . . . . . . . . Disarmed . | . . . . . . . . . . . . Reprogrammed . | . . . . . . . . . . . . Reused . | . . . . . . . . . . . . Traps Extracted . | . . . . . . . . . . . . Installed . | . . . . . . . . . . . . Triggered . | . . . . . . . . . . . . Machines | -11 -10 -9 -8 -7 -6 -5 -5 -5 -4 -3 -2 ---------- Run | Yrd Mat Mat Mat Fac Fac Fac Upp Upp Fac Res Res Machines Disabled 5 | . . 2 . . . 1 . . 1 1 . Max in Single Turn 1 | . . 1 . . . 1 . . 1 1 . Garrison Access 1 | . . . . . . 1 . . . . . Machines Repaired . | . . . . . . . . . . . . Machines Dismantled . | . . . . . . . . . . . . Machines Sabotaged . | . . . . . . . . . . . . Overloaded Fab Kills . | . . . . . . . . . . . . Hacking | -11 -10 -9 -8 -7 -6 -5 -5 -5 -4 -3 -2 --------- Run | Yrd Mat Mat Mat Fac Fac Fac Upp Upp Fac Res Res Machines Accessed 15 | . . . . 2 2 3 1 . 5 2 . Terminals 11 | . . . . 1 2 3 . . 4 1 . Fabricators 2 | . . . . 1 . . . . 1 . . Repair Stations 1 | . . . . . . . . . . 1 . Recycling Units . | . . . . . . . . . . . . Scanalyzers . | . . . . . . . . . . . . Garrison Access . | . . . . . . . . . . . . Total Hacks 34 | . . . . 5 4 8 1 . 13 3 . Successful 12 | . . . . 2 . 4 1 . 5 . . Failed 22 | . . . . 3 4 4 . . 8 3 . Catastrophic 6 | . . . . . 1 2 . . 3 . . Database Lockouts . | . . . . . . . . . . . . Manual 17 | . . . . 3 4 6 . . 4 . . Terminals 28 | . . . . 3 4 8 . . 11 2 . Fabricators 4 | . . . . 2 . . . . 2 . . Repair Stations 1 | . . . . . . . . . . 1 . Recycling Units . | . . . . . . . . . . . . Scanalyzers . | . . . . . . . . . . . . Garrison Access . | . . . . . . . . . . . . Terminal Hacks 8 | . . . . . . 3 1 . 4 . . Prototype ID Bank 2 | . . . . . . 1 . . 1 . . Open Door 1 | . . . . . . . 1 . . . . Level Access Points 1 | . . . . . . . . . 1 . . Alert Level 1 | . . . . . . . . . 1 . . Locate Traps 1 | . . . . . . 1 . . . . . Zone Layout 2 | . . . . . . 1 . . 1 . . Fabricator Hacks 1 | . . . . 1 . . . . . . . Network Status 1 | . . . . 1 . . . . . . . Repair Station Hacks . | . . . . . . . . . . . . Recycling Unit Hacks . | . . . . . . . . . . . . Scanalyzer . | . . . . . . . . . . . . Garrison Access Hacks . | . . . . . . . . . . . . Unauthorized Hacks 3 | . . . . 1 . 1 . . 1 . . Terminals 3 | . . . . 1 . 1 . . 1 . . Botnet 3 | . . . . 1 . 1 . . 1 . . Fabricators . | . . . . . . . . . . . . Repair Stations . | . . . . . . . . . . . . Recycling Units . | . . . . . . . . . . . . Scanalyzers . | . . . . . . . . . . . . Garrison Access . | . . . . . . . . . . . . Data Cores Recovered . | . . . . . . . . . . . . Used . | . . . . . . . . . . . . Hacking Detections 14 | . . . . 2 2 3 . . 5 2 . Full Trace Events 2 | . . . . . 1 . . . 1 . . Feedback Events . | . . . . . . . . . . . . Feedback Blocked . | . . . . . . . . . . . . Robot Schematics Acquired . | . . . . . . . . . . . . Robots Built . | . . . . . . . . . . . . Authchips . | . . . . . . . . . . . . Time . | . . . . . . . . . . . . Total Robot Build Rating . | . . . . . . . . . . . . Part Schematics Acquired . | . . . . . . . . . . . . Parts Built . | . . . . . . . . . . . . Authchips . | . . . . . . . . . . . . Time . | . . . . . . . . . . . . Total Part Build Rating . | . . . . . . . . . . . . Parts Repaired . | . . . . . . . . . . . . Time . | . . . . . . . . . . . . Parts Recycled . | . . . . . . . . . . . . Recycled Matter . | . . . . . . . . . . . . Retrieved Matter . | . . . . . . . . . . . . Retrieved Components . | . . . . . . . . . . . . Parts Scanalyzed . | . . . . . . . . . . . . Part Schematics Acquired . | . . . . . . . . . . . . Parts Damaged . | . . . . . . . . . . . . Bothacking | -11 -10 -9 -8 -7 -6 -5 -5 -5 -4 -3 -2 ------------ Run | Yrd Mat Mat Mat Fac Fac Fac Upp Upp Fac Res Res Used RIF Installer . | . . . . . . . . . . . . Robots Hacked . | . . . . . . . . . . . . Non-combat . | . . . . . . . . . . . . Combat . | . . . . . . . . . . . . Robot Hacks Applied . | . . . . . . . . . . . . Relay Couplers Released 1 | . . . . . . 1 . . . . . Machine Destruction 1 | . . . . . . 1 . . . . . Fabnet Peak Effective % . | . . . . . . . . . . . . Robots Rewired 1 | . . . . 1 . . . . . . . Allies Hacked . | . . . . . . . . . . . . Hacks Repelled . | . . . . . . . . . . . . Allies | -11 -10 -9 -8 -7 -6 -5 -5 -5 -4 -3 -2 -------- Run | Yrd Mat Mat Mat Fac Fac Fac Upp Upp Fac Res Res Total Allies 1 | . . . . 1 . . . . . . . Largest Group 1 | . . . . 1 . . . . . . . Highest-Rated Group 32 | . . . . 32 . . . . . . . Highest-Rated Ally 32 | . . . . 32 . . . . . . . Total Orders . | . . . . . . . . . . . . Ally Attacks 1 | . . . . 1 . . . . . . . Total Damage 31 | . . . . 31 . . . . . . . Kills . | . . . . . . . . . . . . Allies Corrupted . | . . . . . . . . . . . . Allies Melted . | . . . . . . . . . . . . Intel | -11 -10 -9 -8 -7 -6 -5 -5 -5 -4 -3 -2 ------- Run | Yrd Mat Mat Mat Fac Fac Fac Upp Upp Fac Res Res Robot Analysis Total . | . . . . . . . . . . . . Derelict Logs Recovered 2 | . . . . . . . 2 . . . . Drone Launches . | . . . . . . . . . . . . Drone Recoveries . | . . . . . . . . . . . . Exploration | -11 -10 -9 -8 -7 -6 -5 -5 -5 -4 -3 -2 ------------- Run | Yrd Mat Mat Mat Fac Fac Fac Upp Upp Fac Res Res Turns Passed 4744 | . 105 496 182 403 133 677 292 14 968 639 835 Spaces Moved 4057 | 1 80 247 104 757 334 786 501 9 574 345 319 Core 165 | . . . . . . 106 59 . . . . Treads 1 | . . . . . . . . . . . 1 Legs 1009 | 1 80 247 104 . . . 14 9 456 98 . Wheels 539 | . . . . . . . . . . 247 292 Hover 980 | . . . . 121 35 680 . . 118 . 26 Flight 1363 | . . . . 636 299 . 428 . . . . Fastest Speed 22 | 120 120 120 125 22 24 45 40 120 86 105 63 Average Speed 73 | 120 120 140 127 31 27 55 45 174 106 108 123 Slowest Speed 300 | 120 190 190 130 230 110 240 120 190 120 170 300 Overloaded Moves . | . . . . . . . . . . . . Propulsion Burnouts . | . . . . . . . . . . . . Robots Hopped 7 | . . . . 7 . . . . . . . Cave-ins Triggered . | . . . . . . . . . . . . Exploration Rate (%) 20 | 2 26 33 19 26 18 30 60 3 13 7 7 Regions Visited 11 Branch Regions 2 Pre-discovered Areas 1 | . . . . . . . 1 . . . . Known Exits Taken 1 | . . . . . . . . . 1 . . Unknown Exits Taken 10 | 1 1 1 1 1 1 1 1 1 . 1 . Scrap Searched 3 | . . . . . . . 3 . . . . Spaces Dug 35 | . . . . 2 2 14 8 . 8 1 . Terrain Destroyed 204 | . . . . 3 2 109 8 . 8 1 73 Melee 33 | . . . . 2 2 12 8 . 8 1 . Projectile 3 | . . . . . . 2 . . . . 1 AOE 167 | . . . . . . 95 . . . . 72 Terrain Rammed . | . . . . . . . . . . . . Walls Destroyed . | . . . . . . . . . . . . Machines Disabled . | . . . . . . . . . . . . Actions | -11 -10 -9 -8 -7 -6 -5 -5 -5 -4 -3 -2 --------- Run | Yrd Mat Mat Mat Fac Fac Fac Upp Upp Fac Res Res Total 5398 | . 87 365 136 887 362 938 540 8 892 569 614 Wait 785 | . . 47 10 41 6 66 8 . 265 157 185 Move 4032 | . 79 246 103 742 333 785 500 8 573 344 319 Hop 7 | . . . . 7 . . . . . . . Pick Up 52 | . 1 14 3 16 . 4 2 . 3 5 4 Fast Attach 100 | . 5 7 3 7 4 16 10 . 15 15 18 Attach 23 | . . 2 . 6 2 5 1 . 2 1 4 Detach 17 | . 1 3 . 1 5 1 1 . 3 1 1 Swap 42 | . . 3 3 19 . 5 . . 3 3 6 Drop 86 | . 1 19 4 18 4 8 4 . 7 19 2 Fire 63 | . . 22 10 8 . 5 . . 1 . 17 Melee 174 | . . . . 7 8 43 14 . 20 24 58 Ram . | . . . . . . . . . . . . Kick 2 | . . 2 . . . . . . . . . Crush . | . . . . . . . . . . . . Escape Stasis . | . . . . . . . . . . . . Rewire 15 | . . . . 15 . . . . . . . Trap . | . . . . . . . . . . . . Miscellaneous . | . . . . . . . . . . . . Route ------- -11/Scrapyard -10/Materials -9/Materials -8/Materials -7/Factory -6/Factory -5/Factory -5/Upper Caves -5/Upper Caves -4/Factory (discovered 4 exits: *Res x4) -3/Research -2/Research History --------- Turn | Location | Event 1 | -11/Scrapyard | Discovered new exit (range 0) 1 | -11/Scrapyard | Entered Materials 88 | -10/Materials | Discovered new exit (range 16) 106 | -10/Materials | Entered another Materials area 106 | -9/Materials | Evolved 2 slots: Weapon x2 418 | -9/Materials | Build established: Skirmisher 574 | -9/Materials | Discovered new exit (range 11) 602 | -9/Materials | Entered another Materials area 602 | -8/Materials | Evolved 2 slots: Propulsion x2 776 | -8/Materials | Discovered new exit (range 4) 784 | -8/Materials | Entered Factory 784 | -7/Factory | Evolved 2 slots: Propulsion x2 926 | -7/Factory | Garrison activated, responded to threat 1065 | -7/Factory | Lost 7 parts (4n1u2w) 1184 | -7/Factory | Discovered new exit (range 11) 1187 | -7/Factory | Entered another Factory area 1187 | -6/Factory | Evolved 2 slots: Propulsion x1, Utility x1 1297 | -6/Factory | Discovered new exit (range 15) 1320 | -6/Factory | Entered another Factory area 1320 | -5/Factory | Evolved 2 slots: Utility x2 1587 | -5/Factory | Build established: Mutant 1620 | -5/Factory | First assault squad dispatched 1812 | -5/Factory | Lost 4 parts (1n2u1w) 1900 | -5/Factory | Lost 6 parts (5n1w) 1920 | -5/Factory | Search patrols dispatched 1925 | -5/Factory | Spotted B-75 Beast 1934 | -5/Factory | Released all parts (8) 1940 | -5/Factory | Core integrity fell below 50% 1964 | -5/Factory | Lost 3 parts (1n2w) 1988 | -5/Factory | Discovered new exit (range 12) 1997 | -5/Factory | Entered Upper Caves 2062 | -5/Upper Caves | Spotted B-75 Beast 2104 | -5/Upper Caves | Core integrity fell below 20% 2122 | -5/Upper Caves | Learned location of 1 exit from Factory 2248 | -5/Upper Caves | Discovered new exit (range 13) 2289 | -5/Upper Caves | Entered another Upper Caves area 2289 | -5/Upper Caves | Discovered new exit (range 9) 2303 | -5/Upper Caves | Entered Factory 2303 | -4/Factory | Evolved 2 slots: Power x1, Utility x1 2304 | -4/Factory | Identified exit to Research 2503 | -4/Factory | Spotted B-86 Titan 2528 | -4/Factory | Build established: Gladiator 3271 | -4/Factory | Entered Research 3271 | -3/Research | Evolved 2 slots: Utility x2 3902 | -3/Research | Discovered new exit (range 4) 3910 | -3/Research | Entered another Research area 3910 | -2/Research | Evolved 2 slots: Utility x2 4412 | -2/Research | Lost 4 parts (4n) 4502 | -2/Research | System corruption reached 10% 4573 | -2/Research | Lost 8 parts (1p4n1u2w) 4720 | -2/Research | Lost 12 parts (4n5u3w) 4745 | -2/Research | Self-destructed Last Messages --------------- 04726_ R-10 Processor collects Adv. Heat Sink. 04727_ K-01 Serf cleans the Antimatter Diverter. 04731_ U-05 Engineer builds a Wall. 04731_ K-01 Serf cleans the Antimatter Diverter. 04732_ K-01 Serf collects debris. 04733_ Door malfunctions. 04734_ K-01 Serf cleans the Antimatter Diverter. 04735_ System corrupted: Substantial component data lost. 04735_ K-01 Serf collects debris. 04736_ U-05 Engineer destroyed. 04736_ U-05 Engineer repairs door. 04737_ K-01 Serf cleans the Antimatter Diverter. 04738_ Mic. Antimatter Reactor destroyed. 04740_ K-01 Serf collects debris. 04741_ Acquired Corrupted Wheel. 04741_ Integrated Corrupted Wheel (+4). 04741_ Gamma Rifle destroyed. 04743_ P-80 Master knocked back. 04743_ K-01 Serf collects debris. Map ----- +----------------------------------------------------+ | ?????????????????????????????????????????????????? | | ?????????????????????????????????????????????????? | | ?????????????????????????????????????????????????? | | ?????????????????????????????????????????????????? | | ?????????????????????????????????????????????????? | | ?????????????????????????????????????????????????? | | ?????????????????????????????????????????????????? | | ?????????????????????????????????????????????????? | | ?????????????????????????????????????????????????? | | ?????????????????????????????????????????????????? | | ?????????????????????????????????????????????????? | | ?????????????????????????????????????????????????? | | ?????????????????????????????????????????????????? | | ?????????????????????????????????????????????????? | | ?????????????????????????????????????????????????? | | ?????????????????????????????????????????????????? | | ?????????????????????????????????????????????????? | | ?????????????????????????????????????????????????? | | ?????????????????????????????????????????????????? | | ?????????????????????????????????????????????????? | | ?????????????????????????????????????????????????? | | ????????????????????##???????????????????????????? | | ????????????????????###################??????????? | | ################## ! % ===p% # ????????? | | u %A!u=u!!%=pp A #????? | | ####u*%!@%|""" """ #######????? | | #??# % k """ """ #??????????? | | #??# """k """ """ #??????????? | | ###+###########??# *% % #??????????? | | ????????????????????# #??????????? | | ????????????????????#######p#+#########??????????? | | ?????????????############?# #???????????? | | ?????????????# # ##### #???????????? | | ?????????????# # #???# #???????????? | | ?????????????# + #####+#####???##### | | ?????????????# # ## #???# | | ?????????????# # ## !#####! | | ?????????????############## ## """" [+!%%+=| " | | ???????????????????? ## """" [#####! " | | ??????????????????? ## """" #???# " | | ???????????????????????? + """" #???# " | | ???????????????????????? ## #???# [" | | ???????????????????????#### ## #???# [ | | ??????????????????????????# ^ ## % #?# # | | ??????????????????????????# ######+############ | | ??????????????????????????# % = | | ??????????????????????????# | | ??????????????????????????# % % | | ??????????????????????????# | | ??????????????????????????######## ############ | +----------------------------------------------------+ Best States ------------- Heat Dissipation 87 Energy Generation 46 Energy Capacity 575 Matter Stores 300 Matter Capacity 300 Sight Range 20 Robot Scan Range 15 Terrain Scan Range 16 Terrain Scan Density 10 Jamming Range 16 Cloak Strength 2 Power Amplification 30 EM Shielding 2 Armor Coverage 600 Propulsion Shielding 33 Evasion (%) 65 Targeting Accuracy 5 Melee Accuracy 27 Target Analysis 8 Recoil Reduction 4 Offensive Hacking 10 Defensive Hacking 12 Item Schematics ----------------- None Robot Schematics ------------------ None Fabricated ------------ Nothing Alien Tech Used ----------------- None Achievements -------------- None Challenges ------------ None Game ------ Seed ThermalZioniteAirjet Manual? 0 Play Time 00:58:55 Cumulative 228.1 hours Start 2024.03.07 @ 16:50:52 End 2024.03.07 @ 17:48:25 Sessions 1 Manual Loads 0 Difficulty Rogue Special Mode None Game No. 139 Rogue 139 Adventurer 0 Explorer 0 Win Type - Total 2 Types 2/0/0/0/0/0/0/0/0 Lore% 49 Gallery% 69 Achievement% 57 Wizard Run 0 Options --------- Layout 1 ASCII 0 Keyboard 1 Movement Numpad Keybinds 0 Fullscreen 1 Font 32/SmallcapsGlow Map View 50x35 Zoom Use 0% Tactical HUD 1 Map Filters NONE Filters NONE Steam 1 RUN: f3054860-db3c-4521-8227-565022b6134e